Workbook

Sheet Entonnoir de vente campagne
B1: Entonnoir de vente | F1: L’entonnoir de vente illustrant les étapes de vente et les données correspondantes se trouve dans cette cellule.
B2: CAMPAGNE
B3: ÉTAPE | C3: CLIENTS POTENTIELS | D3: PERDUS | E3: NON QUALIFIÉS
B4: Identifiés | C4: 250 | D4: 20 | E4: 9
B5: Contactés | C5: 150 | D5: 15
B6: Discussion | C6: 100 | D6: 35
B7: Remportés | C7: 15
B9: CONSEIL : entrez vos chiffres dans les cellules ci-dessus pour mettre à jour l’entonnoir de vente.

Sheet zéro (hidden)
A1: *** Cette feuille doit rester masquée ***
B7: Moyenne Y : | C7: =AVERAGE(AD13:AE13) -> 183
AD9: =AA12/2+8+50 -> 183
E10: Étiquettes et séries de pourcentages | J10: Étiquettes et totaux Étape | O10: Étiquettes et totaux Perdus | T10: Étiquette et total Non qualifiés | Y10: Bords
B11: Étape | C11: x | E11: Écarts | G11: 0.45 | H11: =3.85%*C7 -> 7.0455 | J11: Écarts | L11: 0.45 | M11: =-3.85%*C7 -> -7.0455 | O11: Écarts | Q11: 0.45 | R11: =-19.2%*C7 -> -35.136 | T11: Écarts | V11: 0.45 | W11: =-25.7%*C7 -> -47.031 | Y11: 1.8 | AD11: =AD12-8 -> 50 | AE11: =AE12+8 -> 316
B12: Bord | E12: Étiquette | F12: Valeur | G12: x | H12: y | J12: Étiquette | K12: Valeur | L12: x | M12: y | O12: Étiquette | P12: Valeur | Q12: x | R12: y | T12: Étiquette | U12: Valeur | V12: x | W12: y | Y12: 2 | AA12: =K13 -> 250 | AB12: Identifiés | AD12: =-AA12/2+$AD$9 -> 58 | AE12: =AA12/2+$AD$9 -> 308 | AG12: =AE12 -> 308 | AH12: 0 | AI12: 0 | AJ12: 0
B13: Identifiés | C13: 2 | E13: =F13 -> 100% | F13: 100% | G13: =$C13+G$11 -> 2.45 | H13: =$C$7+$H$11 -> 190.0455 | J13: =UPPER(B13)&" "&K13 -> IDENTIFIÉS 250 | K13: ='Entonnoir de vente campagne'!C4 -> 250 | L13: =$C13+L$11 -> 2.45 | M13: =$C$7+$M$11 -> 175.9545 | O13: ="PERDUS " & P13 -> PERDUS 20 | P13: ='Entonnoir de vente campagne'!D4 -> 20 | Q13: =$C13+Q$11 -> 2.45 | R13: =$C$7+$R$11 -> 147.864 | T13: ="NON QUALIFIÉS "&U13 -> NON QUALIFIÉS 9 | U13: ='Entonnoir de vente campagne'!E4 -> 9 | V13: =$C13+V$11 -> 2.45 | W13: =$C$7+$W$11 -> 135.969 | Y13: =Y12+1 -> 3 | AB13: IDENTIFIÉS | AD13: =-K13/2+$AD$9 -> 58 | AE13: =K13/2+$AD$9 -> 308 | AG13: =AE13 -> 308 | AH13: =AE13 -> 308 | AI13: 0 | AJ13: 0
B14: Contactés | C14: 3 | E14: =F14 -> 60% | F14: ='Entonnoir de vente campagne'!C5/'Entonnoir de vente campagne'!$C$4 -> 60% | G14: =$C14+G$11 -> 3.45 | H14: =$C$7+$H$11 -> 190.0455 | J14: =UPPER(B14)&" "&K14 -> CONTACTÉS 150 | K14: ='Entonnoir de vente campagne'!C5 -> 150 | L14: =$C14+L$11 -> 3.45 | M14: =$C$7+$M$11 -> 175.9545 | O14: ="PERDUS " & P14 -> PERDUS 15 | P14: ='Entonnoir de vente campagne'!D5 -> 15 | Q14: =$C14+Q$11 -> 3.45 | R14: =$C$7+$R$11 -> 147.864 | Y14: =Y13+1 -> 4 | AB14: CONTACTÉS | AD14: =-K14/2+$AD$9 -> 108 | AE14: =K14/2+$AD$9 -> 258 | AH14: =AE14 -> 258 | AI14: =AE14 -> 258 | AJ14: 0
B15: Discussion | C15: 4 | E15: =F15 -> 40% | F15: ='Entonnoir de vente campagne'!C6/'Entonnoir de vente campagne'!$C$4 -> 40% | G15: =$C15+G$11 -> 4.45 | H15: =$C$7+$H$11 -> 190.0455 | J15: =UPPER(B15)&" "&K15 -> DISCUSSION 100 | K15: ='Entonnoir de vente campagne'!C6 -> 100 | L15: =$C15+L$11 -> 4.45 | M15: =$C$7+$M$11 -> 175.9545 | O15: ="PERDUS " & P15 -> PERDUS 35 | P15: ='Entonnoir de vente campagne'!D6 -> 35 | Q15: =$C15+Q$11 -> 4.45 | R15: =$C$7+$R$11 -> 147.864 | Y15: =Y14+1 -> 5 | AB15: DISCUSSION | AD15: =-K15/2+$AD$9 -> 133 | AE15: =K15/2+$AD$9 -> 233 | AI15: =AE15 -> 233 | AJ15: =AE15 -> 233
B16: Remportés | C16: 5 | E16: =F16 -> 6% | F16: ='Entonnoir de vente campagne'!C7/'Entonnoir de vente campagne'!$C$4 -> 6% | G16: =$C16+G$11 - 0.1 -> 5.35 | H16: =$C$7+$H$11 -> 190.0455 | J16: =UPPER(B16) -> REMPORTÉS | K16: ='Entonnoir de vente campagne'!C7 -> 15 | L16: =$C16+L$11 -0.1 -> 5.35 | M16: =$C$7+$M$11 -> 175.9545 | Y16: =Y15+1 -> 6 | AB16: REMPORTÉS | AD16: =-K16/2+$AD$9 -> 175.5 | AE16: =K16/2+$AD$9 -> 190.5 | AJ16: =AE16 -> 190.5
B17: Remportés | C17: 6 | K17: =K16 -> 15 | L17: 6.44 | M17: =C7 -> 183
